fUST/lending_fUST_20250705
["ID","MTS","AMOUNT","RATE_DAILY","PERIOD"]
[369737877,1751717479549,-186.674791,0.00021918,2]
[369737878,1751717479558,-186.674791,0.00021918,2]
[369737879,1751717479567,-186.674791,0.00021918,2]
[369737880,1751717479576,-186.674791,0.00021918,2]
[369737881,1751717479585,-157.59055,0.00021918,2]
[369737882,1751717479595,-206.0,0.00021918,3]
[369737883,1751717479604,-200.0,0.00021918,2]
[369737884,1751717479616,-150.0,0.00021918,2]
[369737885,1751717479625,-500.87,0.00021936,2]
[369737886,1751717479635,-2200.0,0.00021936,2]
[369737887,1751717479645,-162.135416,0.00021944,2]
[369737888,1751717479655,-2500.0,0.00021964,2]
[369737889,1751717479666,-160.388889,0.00021978,2]
[369737890,1751717479676,-2191.1931702,0.00021989,2]
[369737891,1751717479685,-1114.96,0.00021989,6]
[369737892,1751717479695,-500.0,0.00021999,10]
[369737893,1751717479704,-500.0,0.00021999,10]
[369737894,1751717479713,-500.0,0.00021999,10]
[369737895,1751717479723,-500.0,0.00021999,10]
[369737896,1751717479732,-500.0,0.00021999,10]
[369737897,1751717479741,-37014.91726959,0.00022,7]
[369737898,1751717479754,-4088.13691625,0.00022,7]
[369737899,1751717479766,-3453.31703718,0.00022,7]
[369737900,1751717479777,-1014.04516778,0.00022,7]
[369737901,1751717479789,-3191.54064329,0.00022,7]
[369737902,1751717479800,-56398.11202374,0.00022,7]
[369737903,1751717479810,-15406.5,0.00022,7]
[369737904,1751717479820,-2562.0,0.00022,2]
[369737905,1751717479829,-2562.0,0.00022,2]
[369737906,1751717479839,-2562.0,0.00022,2]
[369737907,1751717479849,-2562.0,0.00022,2]
[369737908,1751717479859,-2562.0,0.00022,2]
[369737909,1751717479868,-1101.85001794,0.00022,2]
[369737910,1751717479880,-1460.14998206,0.00022,2]
[369737911,1751717479889,-669.95001794,0.00022,2]
[369737912,1751717479901,-1892.04998206,0.00022,2]
[369737913,1751717479910,-2562.0,0.00022,2]
[369737914,1751717479919,-2562.0,0.00022,2]
[369737915,1751717479928,-2562.0,0.00022,2]
[369737916,1751717479938,-500.0,0.00022,2]
[369737917,1751717479947,-151.0,0.00022,7]
[369737918,1751717479956,-151.0,0.00022,7]
[369737919,1751717479965,-250.806694,0.00022,7]
[369737920,1751717479974,-151.0,0.00022,7]
[369737921,1751717479983,-151.0,0.00022,7]
[369737922,1751717479992,-151.0,0.00022,7]
[369737923,1751717480001,-151.0,0.00022,7]
[369737924,1751717480011,-151.0,0.00022,7]
[369737925,1751717480020,-260.173685,0.00022,7]
[369737926,1751717480029,-1609.905523,0.00022,5]
[369737927,1751717480039,-260.173685,0.00022,7]
[369737928,1751717480048,-276.54511,0.00022,7]
[369737929,1751717480057,-524.9082602,0.00022,10]
[369737930,1751717480066,-186.674791,0.00022,7]
[369737931,1751717480076,-186.674799,0.00022,7]
[369737932,1751717480085,-848.02350475,0.00022,7]
[369737933,1751717480094,-160.0,0.00022,7]
[369737934,1751717480103,-214.00689675,0.00022,7]
[369737935,1751717480113,-745.1017875,0.00022046,2]
[369737936,1751717480122,-151.2706962,0.00022046,2]
[369737937,1751717480131,-776.79056349,0.00022046,2]
[369737938,1751717480140,-1800.0,0.00022046,2]
[369737939,1751717480149,-1500.0,0.00022046,2]
[369737940,1751717480158,-350.56370297,0.00022046,2]
[369737941,1751717480244,-460.0,0.00019726,2]
[369737942,1751717480253,-460.0,0.0002,2]
[369737943,1751717480262,-460.0,0.00020273,2]
[369737944,1751717480271,-439.31530837,0.00022046,2]
[369737945,1751717480280,-1500.0,0.00022046,2]
[369737946,1751717480289,-1500.0,0.00022046,2]
[369737947,1751717480299,-959.77224944,0.00022046,2]
[369737948,1751717480308,-1000.0,0.00022046,2]
[369737949,1751717480317,-1500.0,0.00022046,2]
[369737950,1751717480326,-168.0,0.00022048,2]
[369737951,1751717480335,-160.0,0.0002205,3]
[369737952,1751717480344,-160.0,0.0002205,5]
[369737953,1751717480354,-151.0,0.0002205,7]
[369737954,1751717480363,-162.135416,0.00022065,2]
[369737955,1751717480373,-328.4,0.00022078,5]
[369737956,1751717480383,-924.91917014,0.00022089,7]
[369737957,1751717480479,-190.04082986,0.00022089,7]
[369737958,1751717480489,-160.0,0.000221,3]
[369737959,1751717480499,-160.825521,0.00022106,2]
[369737960,1751717480508,-160.38889,0.0002214,2]
[369737961,1751717480519,-600.0,0.00022148,2]
[369737962,1751717480528,-484.17893751,0.00022148,2]
[369737963,1751717480875,-460.0,0.00019178,2]
[369737964,1751717480885,-460.0,0.00019178,2]
[369737965,1751717480894,-49.19117275,0.00019178,2]
[369737966,1751717480910,-410.80882725,0.00019178,2]
[369737967,1751717480919,-460.0,0.00019452,2]
[369737968,1751717480928,-460.0,0.00019452,2]
[369737969,1751717480937,-205.49733553,0.000199,2]
[369737970,1751717480947,-205.49733553,0.00020194,2]
[369737971,1751717480956,-205.49733553,0.00020488,3]
[369737972,1751717480965,-502.0,0.00020547,2]
[369737973,1751717480975,-205.49733553,0.00020782,4]
[369737974,1751717480984,-205.49733553,0.00021076,4]
[369737975,1751717480993,-205.49733553,0.00021371,5]
[369737976,1751717481002,-205.49733553,0.00021665,5]
[369737977,1751717481011,-205.49733553,0.00021959,6]
[369737978,1751717481021,-115.82106249,0.00022148,2]
[369737979,1751717481030,-600.0,0.00022148,2]
[369737980,1751717481039,-8144.31447965,0.00022175,2]
[369737981,1751717481048,-162.135416,0.00022186,2]
[369737982,1751717481058,-1114.96,0.00022189,2]
[369737983,1751717481068,-500.0,0.0002219,10]
[369737984,1751717481077,-500.0,0.0002219,10]
[369737985,1751717481087,-500.0,0.0002219,10]
[369737986,1751717481098,-151.0,0.00022191,7]
[369737987,1751717481107,-151.0,0.00022191,7]
[369737988,1751717481117,-151.0,0.00022191,7]
[369737989,1751717481127,-460.0,0.00022191,2]
[369737990,1751717481137,-151.0,0.00022191,7]
[369737991,1751717481147,-208.624692,0.00022191,7]
[369737992,1751717481157,-203.23266209,0.00022191,2]
[369737993,1751717481470,-460.0,0.00019178,2]
[369737994,1751717481481,-460.0,0.00019178,2]
[369737995,1751717481492,-460.0,0.00019178,2]
[369737996,1751717481503,-460.0,0.00019178,2]
[369737997,1751717481513,-460.0,0.00019452,2]
[369737998,1751717481523,-460.0,0.00019452,2]
[369737999,1751717481533,-460.0,0.00019452,2]
[369738000,1751717481542,-460.0,0.00019452,2]
[369738001,1751717481552,-460.0,0.00019726,2]
[369738002,1751717481561,-460.0,0.00019726,2]
[369738003,1751717481570,-460.0,0.00019726,2]
[369738004,1751717481579,-460.0,0.00019726,2]
[369738005,1751717481588,-460.0,0.0002,2]
[369738006,1751717481597,-460.0,0.0002,2]
[369738007,1751717481606,-460.0,0.0002,2]
[369738008,1751717481615,-23.11425796,0.0002,2]
[369738009,1751717481627,-436.88574204,0.0002,2]
[369738010,1751717481637,-460.0,0.00020273,2]
[369738011,1751717481646,-275.98,0.00020273,2]
[369738020,1751717608111,274.8,0.00024778,120]
[369738023,1751717721467,173.0,0.00016438,3]
[369738027,1751717881712,-316.67477201,0.00017605,2]
[369738028,1751717882342,-316.67477201,0.00017605,2]
[369738029,1751717946007,-328.0,0.00017429,2]
[369738031,1751718118524,175.433883,0.00013699,2]
[369738103,1751718400384,169.0,0.000273,120]
[369738104,1751718408341,169.0,0.000273,120]
[369738105,1751718426568,171.83257536,0.000273,120]
[369738173,1751718632543,-1289.25731446,0.000176,2]
[369738175,1751718632555,-345.5146,0.000176,2]
[369738178,1751718632566,-271.28465864,0.000176,2]
[369738240,1751718638519,-173.28300281,0.000176,2]
[369738242,1751718638530,-1200.0,0.00017603,2]
[369738244,1751718638540,-496.0,0.00017604,2]
[369738246,1751718638550,-956.0,0.00017604,2]
[369738248,1751718638560,-300.0,0.00017604,2]
[369738250,1751718638570,-300.0,0.00017604,2]
[369738252,1751718638579,-22619.79422138,0.00017605,2]
[369738254,1751718638588,-260.68826747,0.00017999,2]
[369738256,1751718638598,-152106.16944782,0.00018,2]
[369738258,1751718638607,-7552.50790365,0.00018,2]
[369738260,1751718638616,-1057.8778511,0.00018,2]
[369738262,1751718638626,-500.0,0.00018499,2]
[369738264,1751718638636,-408.90111366,0.00018499,2]
[369738266,1751718638645,-500.0,0.00018499,2]
[369738269,1751718638665,-75364.90607301,0.000185,2]
[369738272,1751718638676,-205.49733553,0.000189,2]
[369738276,1751718638685,-1247.73335285,0.00019078,2]
[369738279,1751718638695,-207.4,0.00019166,2]
[369738282,1751718638705,-500.0,0.00019173,2]
[369738284,1751718638715,-405.51634911,0.00019173,2]
[369738286,1751718638726,-500.0,0.00019173,2]
[369738288,1751718638736,-500.0,0.00019173,2]
[369738290,1751718638746,-500.0,0.00019173,2]
[369738292,1751718638755,-500.0,0.00019173,2]
[369738294,1751718638766,-253.76,0.00019177,2]
[369738296,1751718638776,-460.0,0.00019178,2]
[369738298,1751718638786,-460.0,0.00019178,2]
[369738300,1751718638796,-460.0,0.00019178,2]
[369738303,1751718638806,-460.0,0.00019178,2]
[369738305,1751718638816,-460.0,0.00019178,2]
[369738307,1751718638826,-460.0,0.00019178,2]
[369738309,1751718638836,-460.0,0.00019178,2]
[369738311,1751718638845,-460.0,0.00019178,2]
[369738313,1751718638856,-460.0,0.00019178,2]
[369738315,1751718638866,-460.0,0.00019178,2]
[369738317,1751718638876,-460.0,0.00019178,2]
[369738319,1751718638886,-460.0,0.00019178,2]
[369738321,1751718638896,-460.0,0.00019178,2]
[369738323,1751718638906,-460.0,0.00019178,2]
[369738325,1751718638917,-460.0,0.00019178,2]
[369738327,1751718638927,-460.0,0.00019178,2]
[369738329,1751718638937,-460.0,0.00019178,2]
[369738331,1751718638946,-460.0,0.00019178,2]
[369738333,1751718638956,-460.0,0.00019178,2]
[369738335,1751718638967,-460.0,0.00019178,2]
[369738337,1751718638978,-460.0,0.00019178,2]
[369738340,1751718638988,-460.0,0.00019178,2]
[369738342,1751718638998,-460.0,0.00019178,2]
[369738344,1751718639008,-460.0,0.00019178,2]
[369738346,1751718639018,-460.0,0.00019178,2]
[369738348,1751718639028,-460.0,0.00019178,2]
[369738350,1751718639038,-460.0,0.00019178,2]
[369738352,1751718639048,-460.0,0.00019178,2]
[369738354,1751718639059,-460.0,0.00019178,2]
[369738355,1751718639068,-460.0,0.00019178,2]
[369738357,1751718639078,-460.0,0.00019178,2]
[369738359,1751718639088,-460.0,0.00019178,2]
[369738361,1751718639097,-460.0,0.00019178,2]
[369738363,1751718639107,-1000.0,0.00019178,2]
[369738365,1751718639116,-460.0,0.00019178,2]
[369738367,1751718639126,-460.0,0.00019178,2]
[369738369,1751718639135,-460.0,0.00019178,2]
[369738371,1751718639145,-460.0,0.00019178,2]
[369738374,1751718639156,-460.0,0.00019178,2]
[369738376,1751718639166,-460.0,0.00019178,2]
[369738378,1751718639176,-460.0,0.00019178,2]
[369738380,1751718639185,-460.0,0.00019178,2]
[369738382,1751718639195,-460.0,0.00019178,2]
[369738384,1751718639205,-460.0,0.00019178,2]
[369738386,1751718639215,-460.0,0.00019178,2]
[369738388,1751718639224,-460.0,0.00019178,2]
[369738390,1751718639234,-460.0,0.00019178,2]
[369738392,1751718639244,-460.0,0.00019178,2]
[369738393,1751718639254,-460.0,0.00019178,2]
[369738395,1751718639264,-460.0,0.00019178,2]
[369738397,1751718639273,-315.17571471,0.00019178,2]
[369738399,1751718639282,-460.0,0.00019178,2]
[369738401,1751718639292,-460.0,0.00019178,2]
[369738404,1751718639305,-460.0,0.00019178,2]
[369738406,1751718639315,-460.0,0.00019178,2]
[369738407,1751718639324,-460.0,0.00019178,2]
[369738409,1751718639333,-460.0,0.00019178,2]
[369738411,1751718639343,-460.0,0.00019178,2]
[369738413,1751718639352,-460.0,0.00019178,2]
[369738415,1751718639362,-460.0,0.00019178,2]
[369738417,1751718639371,-460.0,0.00019178,2]
[369738419,1751718639381,-460.0,0.00019178,2]
[369738421,1751718639391,-460.0,0.00019178,2]
[369738424,1751718639400,-460.0,0.00019178,2]
[369738426,1751718639410,-460.0,0.00019178,2]
[369738428,1751718639419,-460.0,0.00019178,2]
[369738430,1751718639429,-460.0,0.00019178,2]
[369738432,1751718639439,-460.0,0.00019178,2]
[369738434,1751718639448,-460.0,0.00019178,2]
[369738436,1751718639458,-460.0,0.00019178,2]
[369738438,1751718639467,-460.0,0.00019178,2]
[369738440,1751718639477,-460.0,0.00019178,2]
[369738442,1751718639486,-460.0,0.00019178,2]
[369738444,1751718639496,-460.0,0.00019178,2]
[369738446,1751718639505,-460.0,0.00019178,2]
[369738448,1751718639515,-460.0,0.00019178,2]
[369738450,1751718639524,-460.0,0.00019178,2]
[369738452,1751718639534,-460.0,0.00019178,2]
[369738454,1751718639543,-453.20367751,0.00019178,2]
[369738456,1751718639553,-460.0,0.00019178,2]
[369738458,1751718639562,-460.0,0.00019178,2]
[369738459,1751718639572,-460.0,0.00019178,2]
[369738461,1751718639581,-460.0,0.00019178,2]
[369738463,1751718639591,-460.0,0.00019178,2]
[369738465,1751718639600,-460.0,0.00019178,2]
[369738467,1751718639610,-460.0,0.00019178,2]
[369738469,1751718639620,-460.0,0.00019178,2]
[369738471,1751718639629,-460.0,0.00019178,2]
[369738473,1751718639639,-486.13553908,0.00019178,2]
[369738475,1751718639648,-460.0,0.00019178,2]
[369738477,1751718639657,-460.0,0.00019178,2]
[369738479,1751718639667,-460.0,0.00019178,2]
[369738481,1751718639676,-579.01888331,0.00019178,2]
[369738483,1751718639686,-460.0,0.00019178,2]
[369738485,1751718639696,-460.0,0.00019178,2]
[369738487,1751718639705,-460.0,0.00019178,2]
[369738489,1751718639715,-460.0,0.00019178,2]
[369738491,1751718639729,-332.92220716,0.00019178,2]
[369738494,1751718639739,-709.06,0.00019178,2]
[369738495,1751718639748,-460.0,0.00019178,2]
[369738497,1751718639758,-460.0,0.00019178,2]
[369738499,1751718639768,-460.0,0.00019178,2]
[369738502,1751718639778,-460.0,0.00019178,2]
[369738504,1751718639788,-460.0,0.00019178,2]
[369738505,1751718639798,-460.0,0.00019178,2]
[369738507,1751718639808,-460.0,0.00019178,2]
[369738509,1751718639818,-460.0,0.00019178,2]
[369738511,1751718639828,-460.0,0.00019178,2]
[369738513,1751718639839,-460.0,0.00019178,2]
[369738515,1751718639848,-803.58,0.00019178,2]
[369738518,1751718639858,-460.0,0.00019178,2]
[369738520,1751718639868,-460.0,0.00019178,2]
[369738522,1751718639878,-460.0,0.00019178,2]
[369738523,1751718639887,-460.0,0.00019178,2]
[369738525,1751718639899,-460.0,0.00019178,2]
[369738527,1751718639909,-460.0,0.00019178,2]
[369738529,1751718639919,-460.0,0.00019178,2]
[369738531,1751718639928,-460.0,0.00019178,2]
[369738533,1751718639937,-461.5366503,0.00019178,2]
[369738535,1751718639947,-460.0,0.00019178,2]
[369738537,1751718639956,-460.0,0.00019178,2]
[369738539,1751718639966,-460.0,0.00019178,2]
[369738541,1751718639976,-460.0,0.00019178,2]
[369738543,1751718639986,-460.0,0.00019178,2]
[369738545,1751718639996,-460.0,0.00019178,2]
[369738548,1751718640007,-226.03266494,0.00019178,2]
[369738550,1751718640016,-460.0,0.00019178,2]
[369738552,1751718640026,-460.0,0.00019178,2]
[369738554,1751718640036,-460.0,0.00019178,2]
[369738556,1751718640046,-460.0,0.00019178,2]
[369738558,1751718640055,-500.0,0.00019178,2]
[369738560,1751718640065,-460.0,0.00019178,2]
[369738562,1751718640075,-460.0,0.00019178,2]
[369738564,1751718640084,-460.0,0.00019178,2]
[369738566,1751718640094,-460.0,0.00019178,2]
[369738568,1751718640104,-460.0,0.00019178,2]
[369738570,1751718640113,-460.0,0.00019178,2]
[369738572,1751718640123,-460.0,0.00019178,2]
[369738574,1751718640132,-460.0,0.00019178,2]
[369738576,1751718640142,-460.0,0.00019178,2]
[369738578,1751718640151,-640.35,0.00019178,2]
[369738580,1751718640161,-460.0,0.00019178,2]
[369738582,1751718640172,-460.0,0.00019178,2]
[369738584,1751718640181,-460.0,0.00019178,2]
[369738586,1751718640191,-460.0,0.00019178,2]
[369738588,1751718640200,-460.0,0.00019178,2]
[369738590,1751718640211,-460.0,0.00019178,2]
[369738592,1751718640220,-460.0,0.00019178,2]
[369738594,1751718640230,-460.0,0.00019178,2]
[369738596,1751718640240,-460.0,0.00019178,2]
[369738598,1751718640249,-460.0,0.00019178,2]
[369738600,1751718640259,-460.0,0.00019178,2]
[369738602,1751718640269,-460.0,0.00019178,2]
[369738604,1751718640278,-460.0,0.00019178,2]
[369738606,1751718640288,-460.0,0.00019178,2]
[369738608,1751718640297,-460.0,0.00019178,2]
[369738610,1751718640307,-803.05,0.00019178,2]
[369738612,1751718640316,-460.0,0.00019178,2]
[369738614,1751718640326,-282.80694967,0.00019178,2]
[369738616,1751718640335,-460.0,0.00019178,2]
[369738618,1751718640344,-460.0,0.00019178,2]
[369738620,1751718640354,-460.0,0.00019178,2]
[369738622,1751718640363,-460.0,0.00019178,2]
[369738624,1751718640372,-460.56667429,0.00019178,2]
[369738626,1751718640382,-460.0,0.00019178,2]
[369738628,1751718640391,-286.15991817,0.00019178,2]
[369738630,1751718640401,-460.0,0.00019178,2]
[369738632,1751718640411,-460.0,0.00019178,2]
[369738634,1751718640421,-460.0,0.00019178,2]
[369738636,1751718640430,-460.0,0.00019178,2]
[369738638,1751718640440,-460.0,0.00019178,2]
[369738640,1751718640450,-460.37459326,0.00019178,2]
[369738642,1751718640460,-460.0,0.00019178,2]
[369738644,1751718640470,-460.0,0.00019178,2]
[369738646,1751718640480,-460.0,0.00019178,2]
[369738648,1751718640489,-560.99591174,0.00019178,2]
[369738650,1751718640499,-460.0,0.00019178,2]
[369738652,1751718640508,-460.0,0.00019178,2]
[369738654,1751718640518,-460.0,0.00019178,2]
[369738656,1751718640527,-262.1016453,0.00019178,2]
[369738658,1751718640537,-460.0,0.00019178,2]
[369738660,1751718640547,-1027.73,0.00019178,2]
[369738662,1751718640558,-460.0,0.00019178,2]
[369738664,1751718640567,-460.0,0.00019178,2]
[369738666,1751718640577,-460.0,0.00019178,2]
[369738668,1751718640586,-460.0,0.00019178,2]
[369738670,1751718640596,-460.0,0.00019178,2]
[369738671,1751718640605,-460.0,0.00019178,2]
[369738673,1751718640615,-460.0,0.00019178,2]
[369738675,1751718640624,-460.0,0.00019178,2]
[369738677,1751718640634,-460.0,0.00019178,2]
[369738679,1751718640644,-460.0,0.00019178,2]
[369738681,1751718640654,-460.0,0.00019178,2]
[369738683,1751718640663,-500.0,0.00019178,2]
[369738685,1751718640673,-500.0,0.00019178,2]
[369738687,1751718640682,-500.0,0.00019178,2]
[369738689,1751718640692,-500.0,0.00019178,2]
[369738691,1751718640702,-500.0,0.00019178,2]
[369738693,1751718640712,-500.0,0.00019178,2]
[369738695,1751718640721,-500.0,0.00019178,2]
[369738697,1751718640731,-500.0,0.00019178,2]
[369738699,1751718640741,-500.0,0.00019178,2]
[369738701,1751718640750,-461.32309673,0.00019178,2]
[369738703,1751718640760,-500.0,0.00019178,2]
[369738705,1751718640770,-460.0,0.00019178,2]
[369738707,1751718640779,-513.09971607,0.00019178,2]
[369738709,1751718640789,-460.0,0.00019178,2]
[369738711,1751718640798,-582.38491072,0.00019178,2]
[369738713,1751718640808,-460.0,0.00019178,2]
[369738715,1751718640817,-460.0,0.00019178,2]
[369738717,1751718640827,-460.0,0.00019178,2]
[369738719,1751718640836,-460.0,0.00019178,2]
[369738721,1751718640845,-460.0,0.00019178,2]
[369738723,1751718640855,-460.0,0.00019178,2]
[369738725,1751718640865,-460.0,0.00019178,2]
[369738726,1751718640874,-460.0,0.00019178,2]
[369738728,1751718640884,-460.0,0.00019178,2]
[369738730,1751718640894,-835.36,0.00019178,2]
[369738732,1751718640904,-371.50799435,0.00019178,2]
[369738733,1751718640913,-460.0,0.00019178,2]
[369738736,1751718640925,-460.0,0.00019178,2]
[369738738,1751718640935,-460.0,0.00019178,2]
[369738739,1751718640945,-460.0,0.00019178,2]
[369738741,1751718640954,-500.0,0.00019178,2]
[369738743,1751718640965,-500.0,0.00019178,2]
[369738745,1751718640974,-460.0,0.00019178,2]
[369738747,1751718640984,-460.0,0.00019178,2]
[369738749,1751718640993,-460.0,0.00019178,2]
[369738751,1751718641003,-460.0,0.00019178,2]
[369738753,1751718641012,-581.71919431,0.00019178,2]
[369738755,1751718641022,-460.0,0.00019178,2]
[369738757,1751718641032,-460.0,0.00019178,2]
[369738759,1751718641042,-460.0,0.00019178,2]
[369738761,1751718641052,-460.0,0.00019178,2]
[369738763,1751718641062,-460.0,0.00019178,2]
[369738765,1751718641071,-460.0,0.00019178,2]
[369738767,1751718641081,-500.0,0.00019178,2]
[369738769,1751718641091,-460.0,0.00019178,2]
[369738770,1751718641100,-460.0,0.00019178,2]
[369738771,1751718641110,-460.0,0.00019178,2]
[369738772,1751718641119,-460.0,0.00019178,2]
[369738773,1751718641129,-460.0,0.00019178,2]
[369738774,1751718641139,-460.0,0.00019178,2]
[369738775,1751718641148,-460.0,0.00019178,2]
[369738776,1751718641159,-460.0,0.00019178,2]
[369738777,1751718641168,-460.0,0.00019178,2]
[369738778,1751718641179,-460.0,0.00019178,2]
[369738779,1751718641189,-460.0,0.00019178,2]
[369738780,1751718641199,-460.0,0.00019178,2]
[369738781,1751718641209,-460.0,0.00019178,2]
[369738782,1751718641219,-460.0,0.00019178,2]
[369738783,1751718641228,-460.0,0.00019178,2]
[369738784,1751718641237,-460.0,0.00019178,2]
[369738785,1751718641247,-331.53473775,0.00019178,2]
[369738786,1751718641258,-460.0,0.00019178,2]
[369738787,1751718641268,-460.0,0.00019178,2]
[369738788,1751718641278,-460.0,0.00019178,2]
[369738789,1751718641287,-460.0,0.00019178,2]
[369738790,1751718641300,-460.0,0.00019178,2]
[369738791,1751718641310,-460.0,0.00019178,2]
[369738792,1751718641320,-788.32,0.00019178,2]
[369738793,1751718641330,-460.0,0.00019178,2]
[369738794,1751718641340,-460.0,0.00019178,2]
[369738795,1751718641350,-460.0,0.00019178,2]
[369738796,1751718641359,-1160.61,0.00019178,2]
[369738798,1751718641370,-460.0,0.00019178,2]
[369738799,1751718641380,-460.0,0.00019178,2]
[369738800,1751718641391,-408.36086501,0.00019178,2]
[369738802,1751718641401,-460.0,0.00019178,2]
[369738804,1751718641411,-460.0,0.00019178,2]
[369738806,1751718641421,-460.0,0.00019178,2]
[369738808,1751718641430,-421.2601518,0.00019178,2]
[369738810,1751718641440,-460.0,0.00019178,2]
[369738812,1751718641449,-196.79705761,0.00019178,2]
[369738814,1751718641459,-460.0,0.00019178,2]
[369738816,1751718641469,-460.0,0.00019178,2]
[369738818,1751718641478,-462.50939795,0.00019178,2]
[369738820,1751718641488,-460.0,0.00019178,2]
[369738840,1751718641669,-460.0,0.00019178,2]
[369738842,1751718641679,-460.0,0.00019178,2]
[369738844,1751718641689,-460.0,0.00019178,2]
[369738846,1751718641698,-460.0,0.00019178,2]
[369738848,1751718641708,-458.12460351,0.00019178,2]
[369738850,1751718641719,-460.0,0.00019178,2]
[369738852,1751718641729,-460.0,0.00019178,2]
[369738854,1751718641738,-460.0,0.00019178,2]
[369738856,1751718641748,-460.0,0.00019178,2]
[369738858,1751718641757,-460.0,0.00019178,2]
[369738860,1751718641766,-460.0,0.00019178,2]
[369738862,1751718641776,-460.0,0.00019178,2]
[369738864,1751718641785,-460.0,0.00019178,2]
[369738866,1751718641795,-460.0,0.00019178,2]
[369738868,1751718641804,-460.0,0.00019178,2]
[369738870,1751718641814,-460.0,0.00019178,2]
[369738872,1751718641824,-460.0,0.00019178,2]
[369738874,1751718641833,-460.0,0.00019178,2]
[369738876,1751718641843,-460.0,0.00019178,2]
[369738878,1751718641852,-460.0,0.00019178,2]
[369738880,1751718641863,-460.0,0.00019178,2]
[369738882,1751718641873,-460.0,0.00019178,2]
[369738884,1751718641882,-460.0,0.00019178,2]
[369738886,1751718641891,-460.0,0.00019178,2]
[369738888,1751718641901,-460.0,0.00019178,2]
[369738890,1751718641910,-460.0,0.00019178,2]
[369738892,1751718641920,-460.0,0.00019178,2]
[369738894,1751718641930,-460.0,0.00019178,2]
[369738896,1751718641939,-460.0,0.00019178,2]
[369738898,1751718641949,-460.0,0.00019178,2]
[369738900,1751718641959,-460.0,0.00019178,2]
[369738902,1751718641968,-460.0,0.00019178,2]
[369738904,1751718641978,-274.09563369,0.00019178,2]
[369738906,1751718641987,-460.0,0.00019178,2]
[369738908,1751718641996,-460.0,0.00019178,2]
[369738910,1751718642005,-461.02090179,0.00019178,2]
[369738912,1751718642015,-460.0,0.00019178,2]
[369738914,1751718642024,-460.0,0.00019178,2]
[369738916,1751718642035,-460.0,0.00019178,2]
[369738918,1751718642044,-460.0,0.00019178,2]
[369738920,1751718642053,-460.0,0.00019178,2]
[369738922,1751718642063,-460.0,0.00019178,2]
[369738924,1751718642071,-460.0,0.00019178,2]
[369738926,1751718642080,-460.0,0.00019178,2]
[369738927,1751718642089,-460.0,0.00019178,2]
[369738929,1751718642099,-460.0,0.00019178,2]
[369738931,1751718642109,-460.0,0.00019178,2]
[369738933,1751718642118,-460.0,0.00019178,2]
[369738935,1751718642127,-460.0,0.00019178,2]
[369738937,1751718642136,-460.0,0.00019178,2]